bitfinex/quotes_BTCUSD_20210101
["timestamp","ask_amount","ask_price","bid_price","bid_amount"]
[1609532609861,0.4778,29224.0,29223.0,0.01088824]
[1609532611478,0.4778,29224.0,29223.0,0.37445924]
[1609532611681,0.4778,29224.0,29223.0,0.52945924]
[1609532614416,0.5278,29224.0,29223.0,0.52945924]
[1609532614621,0.4778,29224.0,29223.0,0.52945924]
[1609532618059,0.4778,29224.0,29223.0,1.55404315]
[1609532618256,0.4778,29224.0,29223.0,1.81404315]
[1609532618461,0.4778,29224.0,29223.0,8.9437446]
[1609532618662,0.4778,29224.0,29223.0,9.1437446]
[1609532618962,0.03567338,29234.0,29223.0,9.1437446]
[1609532619161,0.03567338,29234.0,29227.0,0.363571]
[1609532619465,0.03567338,29234.0,29231.0,0.363571]
[1609532619682,0.03567338,29234.0,29231.0,0.413571]
[1609532620484,0.03567338,29234.0,29231.0,1.263571]
[1609532620682,0.03567338,29234.0,29231.0,0.633571]
[1609532620884,0.03567338,29234.0,29231.0,0.42445628]
[1609532621189,0.51260001,29233.0,29231.0,0.50445628]
[1609532621382,0.51260001,29233.0,29231.0,2.05445628]
[1609532621984,0.51260001,29233.0,29231.0,0.50445628]
[1609532622285,0.51260001,29233.0,29231.0,1.47904019]
[1609532622484,0.51260001,29233.0,29231.0,5.16904019]
[1609532622686,0.51260001,29233.0,29232.0,5.03961024]
[1609532623382,0.51260001,29233.0,29232.0,0.88961024]
[1609532623583,0.51260001,29233.0,29232.0,0.573571]
[1609532624381,0.51260001,29233.0,29232.0,1.903571]
[1609532624784,0.51260001,29233.0,29232.0,1.823571]
[1609532625812,0.50760001,29233.0,29232.0,3.973571]
[1609532626013,0.50760001,29233.0,29232.0,2.87815491]
[1609532626619,0.50760001,29233.0,29232.0,7.22815491]
[1609532628213,0.50760001,29233.0,29232.0,3.07815491]
[1609532628415,0.50760001,29233.0,29232.0,4.67815491]
[1609532628715,0.50760001,29233.0,29232.0,3.503571]
[1609532628912,0.50760001,29233.0,29232.0,3.703571]
[1609532630178,0.51250001,29235.0,29232.0,3.703571]
[1609532630482,0.51250001,29235.0,29234.0,6.77141326]
[1609532630680,0.51250001,29235.0,29234.0,7.82599717]
[1609532630884,0.51250001,29235.0,29234.0,7.29419415]
[1609532631108,0.51250001,29235.0,29234.0,8.29419415]
[1609532631310,0.51250001,29235.0,29234.0,7.31961024]
[1609532631709,0.51250001,29235.0,29234.0,1.81961024]
[1609532631910,0.51250001,29235.0,29234.0,0.493571]
[1609532632313,0.51250001,29235.0,29234.0,2.643571]
[1609532633310,0.51250001,29235.0,29234.0,3.843571]
[1609532633712,0.51250001,29235.0,29234.0,2.643571]
[1609532633914,0.51250001,29235.0,29234.0,3.103571]
[1609532634311,0.51250001,29235.0,29234.0,3.903571]
[1609532634518,0.51250001,29235.0,29234.0,0.953571]
[1609532634741,0.51250001,29235.0,29234.0,0.443571]
[1609532634938,0.51250001,29235.0,29234.0,0.363571]
[1609532635739,0.54816765,29235.0,29234.0,0.363571]
[1609532636242,0.61950291,29235.0,29234.0,0.363571]
[1609532636542,0.61950291,29235.0,29231.0,0.363571]
[1609532636739,0.61950291,29235.0,29232.0,0.18]
[1609532636941,0.51250001,29235.0,29233.0,0.363571]
[1609532637844,0.51250001,29235.0,29234.0,1.87445519]
[1609532638043,0.51250001,29235.0,29234.0,2.23445519]
[1609532638243,0.51250001,29235.0,29234.0,2.31445519]
[1609532638742,0.51250001,29235.0,29234.0,0.73445519]
[1609532638941,0.51250001,29235.0,29234.0,0.37445519]
[1609532642768,0.51250001,29235.0,29234.0,0.50945519]
[1609532644140,0.65143986,29235.0,29234.0,0.50945519]
[1609532644304,0.54816605,29235.0,29234.0,0.40201325]
[1609532644506,0.51250001,29235.0,29234.0,0.40201325]
[1609532645305,0.51250001,29235.0,29234.0,0.26701325]
[1609532647941,0.51250001,29235.0,29233.0,0.21149]
[1609532648245,0.51250001,29235.0,29234.0,0.363517]
[1609532648644,0.51250001,29235.0,29231.0,0.363517]
[1609532649046,0.51250001,29235.0,29233.0,0.363517]
[1609532649240,0.51250001,29235.0,29233.0,0.548527]
[1609532649440,0.51250001,29235.0,29234.0,0.37451665]
[1609532650072,0.601792,29235.0,29234.0,0.37451665]
[1609532650279,0.70879681,29235.0,29234.0,0.01099965]
[1609532650572,0.63736322,29235.0,29234.0,0.01099965]
[1609532650970,0.63236322,29235.0,29234.0,0.01099965]
[1609532652774,0.63236322,29235.0,29234.0,0.37451665]
[1609532654979,0.61450482,29235.0,29234.0,0.37451665]
[1609532655894,0.61450482,29235.0,29234.0,0.45451665]
[1609532656196,0.61450482,29235.0,29234.0,0.77923327]
[1609532656493,0.61450482,29235.0,29234.0,0.61951665]
[1609532657397,0.60950482,29235.0,29234.0,0.61951665]
[1609532660448,0.60930482,29235.0,29234.0,0.61951665]
[1609532660653,0.60930482,29235.0,29234.0,0.66587423]
[1609532664280,0.60910482,29235.0,29234.0,0.66587423]
[1609532665114,0.60910482,29235.0,29234.0,0.61951665]
[1609532666916,0.53776828,29235.0,29234.0,0.61951665]
[1609532669223,0.50210001,29235.0,29234.0,0.61951665]
[1609532672663,0.57343082,29235.0,29234.0,0.61951665]
[1609532674214,0.57343082,29235.0,29234.0,0.53951665]
[1609532674921,0.60909695,29235.0,29234.0,0.53951665]
[1609532675317,0.60909695,29235.0,29234.0,0.53451665]
[1609532676518,0.60909695,29235.0,29234.0,0.52951665]
[1609532677816,0.60909695,29235.0,29234.0,0.36451665]
[1609532678217,0.53776614,29235.0,29234.0,0.36451665]
[1609532678618,0.53776614,29235.0,29234.0,0.59609665]
[1609532678823,0.53776614,29235.0,29234.0,3.64609665]
[1609532679026,0.53776614,29235.0,29234.0,4.32109665]
[1609532679415,0.53276614,29235.0,29234.0,4.32109665]
[1609532679624,0.53276614,29235.0,29234.0,4.3678401]
[1609532679833,0.49710001,29235.0,29234.0,4.3678401]
[1609532681234,0.49710001,29235.0,29234.0,5.34242401]
[1609532682236,0.49210001,29235.0,29234.0,4.3678401]
[1609532682634,0.49210001,29235.0,29234.0,5.34242401]
[1609532682837,0.49210001,29235.0,29234.0,4.3678401]
[1609532683745,0.077691,29236.0,29234.0,9.54242401]
[1609532683953,0.15,29240.0,29238.0,7.7420483]
[1609532684153,0.6744222,29242.0,29239.0,9.1878139]
[1609532684354,0.6744222,29242.0,29241.0,8.27103358]
[1609532684544,0.6744222,29242.0,29241.0,9.16728061]
[1609532684741,0.6744222,29242.0,29241.0,9.33519058]
[1609532684946,0.6744222,29242.0,29241.0,9.58167081]
[1609532685150,0.63939418,29242.0,29241.0,10.44699558]
[1609532685340,0.63939418,29242.0,29241.0,10.52699558]
[1609532685860,0.63939418,29242.0,29241.0,10.49352746]
[1609532686261,0.63939418,29242.0,29241.0,10.61519058]
[1609532687066,0.63939418,29242.0,29241.0,11.14519058]
[1609532687263,0.63939418,29242.0,29241.0,10.52699558]
[1609532687464,0.63939418,29242.0,29241.0,10.61519058]
[1609532687663,0.63939418,29242.0,29241.0,10.52699558]
[1609532687869,4.18e-06,29242.0,29241.0,10.61519058]
[1609532688169,4.18e-06,29242.0,29241.0,11.29809058]
[1609532688364,4.18e-06,29242.0,29241.0,13.32809058]
[1609532688669,4.18e-06,29242.0,29241.0,13.23989558]
[1609532688865,4.18e-06,29242.0,29241.0,13.32809058]
[1609532689261,4.18e-06,29242.0,29241.0,13.37422741]
[1609532689427,0.09500418,29245.0,29242.0,1.30638693]
[1609532689629,0.09500418,29245.0,29244.0,7.94532002]
[1609532689829,0.09500418,29245.0,29244.0,9.12156705]
[1609532690025,0.09500418,29245.0,29244.0,7.94698314]
[1609532690223,0.09500418,29245.0,29244.0,9.14698314]
[1609532690425,0.07999218,29245.0,29244.0,10.08809893]
[1609532690823,0.07999218,29245.0,29244.0,10.12156705]
[1609532691260,0.07499218,29245.0,29244.0,10.12156705]
[1609532692360,0.07499218,29245.0,29244.0,10.1324476]
[1609532692560,0.07499218,29245.0,29244.0,9.15786369]
[1609532692865,0.07499218,29245.0,29244.0,10.1324476]
[1609532693861,0.07499218,29245.0,29244.0,9.15786369]
[1609532694462,0.07499218,29245.0,29244.0,10.1324476]
[1609532694895,0.07499218,29245.0,29244.0,9.15786369]
[1609532695090,0.07499218,29245.0,29244.0,10.1324476]
[1609532695392,0.07499218,29245.0,29244.0,9.15786369]
[1609532695690,0.07499218,29245.0,29244.0,8.63865228]
[1609532695891,0.07499218,29245.0,29244.0,9.94322507]
[1609532696993,0.4286,29306.0,29244.0,9.94322507]
[1609532697202,0.5122,29255.0,29245.0,10.77617075]
[1609532697500,0.5122,29255.0,29254.0,3.579082]
[1609532697707,0.94750138,29263.0,29256.0,4.513291]
[1609532697907,0.94750138,29263.0,29258.0,0.229058]
[1609532697908,0.74750138,29263.0,29258.0,0.229058]
[1609532698104,0.74750138,29263.0,29259.0,0.33180302]
[1609532698300,0.51510001,29264.0,29260.0,0.363232]
[1609532698501,0.51010001,29264.0,29263.0,0.879032]
[1609532698697,0.51010001,29264.0,29263.0,0.471422]
[1609532701518,2.31010001,29264.0,29263.0,0.471422]
[1609532701727,2.67355701,29264.0,29263.0,0.34239]
[1609532701914,2.67355701,29264.0,29263.0,0.16239]
[1609532702216,2.87355701,29264.0,29263.0,0.16239]
[1609532702422,2.87355701,29264.0,29261.0,0.1]
[1609532702618,0.363457,29263.0,29261.0,0.1]
[1609532702820,0.563457,29263.0,29261.0,0.1]
[1609532703116,0.2,29263.0,29258.0,0.746]
[1609532703318,0.2,29263.0,29262.0,0.01087388]
[1609532703627,0.71030001,29264.0,29262.0,0.37433088]
[1609532703918,0.54594273,29264.0,29262.0,0.37433088]
[1609532704771,0.51030001,29264.0,29262.0,0.37433088]
[1609532705175,0.51010001,29264.0,29263.0,0.30227]
[1609532705374,0.48724222,29264.0,29263.0,0.30227]
[1609532705977,0.48724222,29264.0,29263.0,0.17349]
[1609532706219,0.85069922,29264.0,29263.0,0.17349]
[1609532706414,0.85093135,29264.0,29263.0,0.17349]
[1609532706614,2.25093135,29264.0,29263.0,0.17349]
[1609532707009,0.85093135,29264.0,29263.0,0.17349]
[1609532707615,0.85093135,29264.0,29263.0,0.536947]
[1609532707616,0.48747435,29264.0,29263.0,0.536947]
[1609532707816,0.48747435,29264.0,29263.0,0.671947]
[1609532708009,0.48747435,29264.0,29263.0,0.666947]
[1609532709016,0.48727435,29264.0,29263.0,0.666947]
[1609532709411,0.48727435,29264.0,29263.0,0.68336595]
[1609532710638,0.48727435,29264.0,29263.0,0.54836595]
[1609532712535,0.48727435,29264.0,29263.0,0.18490895]
[1609532712736,0.85073135,29264.0,29263.0,0.18490895]
[1609532712943,0.84073135,29264.0,29263.0,0.01641895]
[1609532713440,4.84073135,29264.0,29263.0,0.01641895]
[1609532713644,5.04073135,29264.0,29263.0,0.01641895]
[1609532714242,1.04073135,29264.0,29263.0,0.01641895]
[1609532714544,1.04073135,29264.0,29263.0,0.21172895]
[1609532714840,1.03073135,29264.0,29263.0,0.21172895]
[1609532715338,0.83073135,29264.0,29263.0,0.21172895]
[1609532717777,0.93766057,29264.0,29263.0,0.21172895]
[1609532719180,0.57420357,29264.0,29263.0,0.21172895]
[1609532719480,0.50291742,29264.0,29263.0,0.21172895]
[1609532719681,0.86637442,29264.0,29263.0,0.20976095]
[1609532719874,0.57420152,29264.0,29263.0,0.20976095]
[1609532720080,1.1623884,29264.0,29263.0,0.20976095]
[1609532720276,1.1623884,29264.0,29263.0,0.57321795]
[1609532720475,1.0911043,29264.0,29263.0,0.57321795]
[1609532720775,1.0911043,29264.0,29263.0,0.20976095]
[1609532721078,1.05546123,29264.0,29263.0,0.20976095]
[1609532721473,1.41891823,29264.0,29263.0,0.20976095]
[1609532721676,1.05546123,29264.0,29263.0,0.20976095]
[1609532722079,1.41891823,29264.0,29263.0,0.20976095]
[1609532723500,1.05546123,29264.0,29263.0,0.20976095]
[1609532724005,1.05546123,29264.0,29263.0,0.57321795]
[1609532724202,1.05546123,29264.0,29263.0,1.42112792]
[1609532724408,1.05546123,29264.0,29263.0,8.75071183]
[1609532724804,1.05046123,29264.0,29263.0,2.75071183]
[1609532725004,1.05046123,29264.0,29263.0,2.58280186]
[1609532725309,0.58841901,29264.0,29263.0,2.75071183]
[1609532725512,0.00320001,29265.0,29264.0,5.99913999]
[1609532725709,0.00300001,29265.0,29264.0,8.43428792]
[1609532726409,0.51240002,29266.0,29265.0,1.45]
[1609532726613,0.51240002,29266.0,29265.0,0.69523302]
[1609532726806,0.51220002,29266.0,29265.0,1.69523302]
[1609532727510,0.51220002,29266.0,29265.0,1.77523302]
[1609532727702,0.5124086,29266.0,29265.0,1.77523302]
[1609532728308,0.5124086,29266.0,29265.0,3.3177269]
[1609532728513,0.0004086,29266.0,29265.0,3.6087569]
[1609532728942,0.00060001,29269.0,29268.0,7.75]
[1609532729143,0.00060001,29269.0,29268.0,10.9519742]
[1609532729932,0.00060001,29269.0,29268.0,10.14227408]
[1609532730340,0.00124003,29271.0,29270.0,4.32873]
[1609532730539,4.99684003,29272.0,29271.0,5.23793091]
[1609532730733,4.99684003,29272.0,29271.0,5.64973393]
[1609532730938,4.99684003,29272.0,29271.0,2.74973393]
[1609532731136,4.99684003,29272.0,29271.0,1.77515002]
[1609532731341,4.99684003,29272.0,29271.0,0.443347]
[1609532731735,4.98182803,29272.0,29271.0,1.843347]
[1609532731937,4.97182803,29272.0,29271.0,1.51793091]
[1609532732135,4.97182803,29272.0,29271.0,2.418347]
[1609532732332,4.97182803,29272.0,29271.0,3.39293091]
[1609532733931,4.97182803,29272.0,29271.0,0.818347]
[1609532734704,4.97182803,29272.0,29271.0,1.15015002]
[1609532734907,4.97182803,29272.0,29271.0,0.818347]
[1609532735107,4.97182803,29272.0,29271.0,1.668347]
[1609532735413,4.97182803,29272.0,29271.0,0.818347]
[1609532736810,4.97182803,29272.0,29271.0,0.718347]
[1609532737007,4.97182803,29272.0,29271.0,1.243347]
[1609532737008,4.17182803,29272.0,29271.0,1.243347]
[1609532737211,4.17182803,29272.0,29271.0,4.41793091]
[1609532737807,4.17182803,29272.0,29271.0,0.543347]
[1609532738010,4.17182803,29272.0,29271.0,0.443347]
[1609532740139,4.85432803,29272.0,29271.0,0.363347]
[1609532740341,5.21778503,29272.0,29267.0,0.33180302]
[1609532740545,0.0002,29271.0,29268.0,0.513457]
[1609532740737,0.0002,29271.0,29269.0,0.33180302]
[1609532740940,0.0002,29271.0,29270.0,0.128659]
[1609532741140,5.7412553,29272.0,29270.0,0.268659]
[1609532741141,5.7414553,29272.0,29270.0,0.268659]
[1609532742239,5.7414553,29272.0,29270.0,0.128659]
[1609532742936,5.7514553,29272.0,29270.0,0.128659]
[1609532744842,5.9514553,29272.0,29270.0,0.128659]
[1609532745442,5.9514553,29272.0,29267.0,0.33180302]
[1609532745673,0.363657,29271.0,29267.0,0.33180302]
[1609532745869,0.563657,29271.0,29267.0,0.33180302]
[1609532746379,0.563657,29271.0,29268.0,0.01534059]
[1609532746964,0.90279232,29271.0,29268.0,0.01534059]
[1609532747170,4.89615701,29269.0,29268.0,0.01534059]
[1609532747377,2.45,29268.0,29264.0,6.52603999]
[1609532747570,0.363457,29267.0,29264.0,6.52603999]
[1609532748069,0.563457,29267.0,29264.0,5.99913999]
[1609532748270,0.563657,29267.0,29265.0,0.33180302]
[1609532748467,0.563657,29267.0,29264.0,5.99913999]
[1609532748774,0.563657,29267.0,29264.0,5.57322001]
[1609532748775,7.00259232,29266.0,29264.0,5.57322001]
[1609532748978,4.92876013,29265.0,29264.0,2.57173287]
[1609532749172,1.9,29264.0,29252.0,0.6270238]
[1609532749419,1.0631794,29263.0,29252.0,0.6270238]
[1609532749615,0.7071217,29262.0,29252.0,0.6270238]
[1609532749815,1.0705027,29261.0,29252.0,0.6270238]
[1609532750013,0.7071217,29260.0,29252.0,0.6270238]
[1609532750218,0.61958101,29259.0,29252.0,0.47769486]
[1609532750413,0.33180302,29258.0,29252.0,0.35730806]
[1609532750718,0.363381,29257.0,29249.0,0.11988571]
[1609532750909,0.53688402,29257.0,29249.0,0.11988571]
[1609532751114,1.04918402,29257.0,29249.0,0.11988571]
[1609532751827,1.04918402,29257.0,29250.0,0.01087749]
[1609532752430,0.7123,29257.0,29251.0,1.41796491]
[1609532752739,0.7123,29257.0,29253.0,0.170582]
[1609532752740,0.03564544,29254.0,29253.0,0.170582]
[1609532752936,0.03564544,29254.0,29253.0,2.570582]
[1609532753163,0.5123,29257.0,29253.0,0.170582]
[1609532753365,0.5123,29257.0,29254.0,0.170577]
[1609532753570,0.54794021,29257.0,29254.0,0.170577]
[1609532753965,0.5123,29257.0,29254.0,0.170577]
[1609532755575,0.5123,29257.0,29256.0,2.913314]
[1609532755866,0.5123,29257.0,29256.0,3.531744]
[1609532756070,0.5123,29257.0,29256.0,0.981744]
[1609532756369,0.5123,29257.0,29256.0,0.526744]
[1609532756565,0.5123,29257.0,29256.0,0.626744]
[1609532756771,0.5123,29257.0,29256.0,0.526744]
[1609532757066,0.5123,29257.0,29256.0,0.63762019]
[1609532757966,0.5123,29257.0,29256.0,0.53762019]
[1609532761292,0.5123,29257.0,29256.0,0.37419019]
[1609532761696,0.5123,29257.0,29256.0,0.3719149]
[1609532762097,0.5123,29257.0,29256.0,0.3669149]
[1609532762595,0.5123,29257.0,29256.0,0.3747965]
[1609532763299,0.7123,29257.0,29249.0,0.5213965]
[1609532763503,0.683,29259.0,29250.0,0.370601]
[1609532763504,0.0784,29259.0,29250.0,0.370601]
[1609532763806,0.33460001,29259.0,29249.0,0.5213965]
[1609532764004,0.363415,29258.0,29250.0,0.23]
[1609532764464,0.5123,29257.0,29250.0,0.23]
[1609532764673,0.363415,29256.0,29248.0,0.6568]
[1609532764872,0.61961501,29256.0,29248.0,0.6568]
[1609532765170,0.61961501,29256.0,29248.0,0.6318]
[1609532765171,0.68214501,29256.0,29248.0,0.6318]
[1609532765871,0.51240001,29251.0,29248.0,0.6318]
[1609532766063,0.51240001,29251.0,29249.0,0.170619]
[1609532766271,0.363415,29250.0,29247.0,0.6336]
[1609532766472,0.51240001,29251.0,29248.0,0.170626]
[1609532766665,0.51240001,29251.0,29247.0,0.6336]
[1609532767866,0.51240001,29251.0,29248.0,0.18150581]
[1609532768270,0.50740001,29251.0,29248.0,0.18150581]
[1609532769267,0.50740001,29251.0,29250.0,0.170614]
[1609532769764,0.50240001,29251.0,29250.0,0.270614]
[1609532770188,0.53570137,29258.0,29250.0,0.270614]
[1609532770988,0.5123,29257.0,29250.0,0.270614]
[1609532771294,0.7123,29257.0,29250.0,1.24519791]
[1609532771488,0.33570137,29258.0,29251.0,0.63869438]
[1609532771789,0.10205252,29261.0,29253.0,0.39869438]
[1609532771993,0.10205252,29261.0,29254.0,0.39869438]
[1609532772293,0.63,29262.0,29254.0,0.56926938]
[1609532772294,0.5122,29259.0,29254.0,0.56926938]
[1609532772490,0.5122,29259.0,29254.0,0.170575]
[1609532772686,0.5122,29259.0,29255.0,0.155]
[1609532772894,0.5122,29259.0,29256.0,0.270563]
[1609532773392,0.5122,29261.0,29257.0,0.01087566]
[1609532773593,0.5122,29261.0,29258.0,0.170547]
[1609532773895,0.5122,29261.0,29259.0,0.1]
[1609532774090,0.5122,29261.0,29260.0,0.170533]
[1609532778717,0.5122,29261.0,29260.0,0.18140774]
[1609532780648,0.5122,29261.0,29260.0,2.93140774]
[1609532780850,0.5122,29261.0,29260.0,3.44640774]
[1609532781049,0.5122,29261.0,29260.0,0.69640774]
[1609532781250,0.5122,29261.0,29260.0,0.18140774]
[1609532784195,0.3122,29261.0,29260.0,0.18140774]
[1609532784491,0.3428369,29261.0,29260.0,0.18140774]
[1609532784889,0.41411119,29261.0,29260.0,0.18140774]
[1609532785817,0.41411119,29261.0,29260.0,0.01087474]
[1609532785818,1.52752619,29261.0,29260.0,0.01087474]
[1609532786218,1.72752619,29261.0,29260.0,0.01087474]
[1609532786616,0.97752619,29261.0,29260.0,0.01087474]
[1609532788514,2.87752619,29261.0,29260.0,0.01087474]
[1609532788917,2.87712619,29261.0,29260.0,0.01087474]
[1609532789116,0.97712619,29261.0,29260.0,0.01087474]
[1609532789515,2.44850382,29261.0,29260.0,0.01087474]
[1609532791541,0.363415,29259.0,29253.0,0.1427408]
[1609532791737,0.7,29260.0,29253.0,0.1427408]
[1609532791940,0.2,29259.0,29253.0,0.1427408]
[1609532792142,0.19,29259.0,29253.0,0.1427408]
[1609532792448,0.30692621,29257.0,29254.0,0.170577]
[1609532792759,0.363415,29256.0,29252.0,0.6806]
[1609532792950,0.1,29256.0,29253.0,0.170584]
[1609532793545,0.1,29256.0,29253.0,0.3133248]
[1609532793936,0.1,29256.0,29253.0,0.1427408]
[1609532794140,0.5123,29255.0,29253.0,0.1427408]
[1609532794338,0.6123,29255.0,29254.0,0.17058]
[1609532794592,0.6123,29255.0,29252.0,0.8233408]
[1609532794787,0.6123,29255.0,29253.0,0.170586]
[1609532796616,0.6123,29255.0,29253.0,0.3133268]
[1609532796818,0.6123,29255.0,29253.0,0.1427408]
[1609532797621,0.6123,29255.0,29252.0,0.8233408]
[1609532797821,0.6123,29255.0,29253.0,0.170587]
[1609532798224,0.63014731,29255.0,29252.0,0.8233408]
[1609532798922,0.62514731,29255.0,29252.0,0.8233408]
[1609532799125,0.62514731,29255.0,29252.0,0.8183408]
[1609532799328,0.07129712,29254.0,29253.0,0.165587]
[1609532799528,0.07129712,29254.0,29253.0,0.3083278]
[1609532800144,0.10694576,29254.0,29253.0,0.3083278]
[1609532800550,0.20694576,29254.0,29248.0,0.6675408]
[1609532800751,0.20694576,29254.0,29249.0,0.165612]
[1609532801146,0.20194576,29254.0,29249.0,0.385612]
[1609532801447,0.20194576,29254.0,29249.0,0.165612]
[1609532801852,0.20194576,29254.0,29249.0,0.3083528]
[1609532802051,0.6832,29251.0,29249.0,0.3083528]
[1609532802250,0.7832,29251.0,29249.0,0.3083528]
[1609532802848,0.7832,29251.0,29249.0,0.165612]
[1609532803049,0.7832,29251.0,29249.0,0.160612]
[1609532803547,0.7782,29251.0,29249.0,0.160612]
[1609532804157,0.363419,29250.0,29247.0,0.1427408]
[1609532804359,0.7115711,29250.0,29247.0,0.1427408]
[1609532804554,0.463419,29250.0,29247.0,0.1427408]
[1609532804861,0.463419,29250.0,29244.0,0.6305]
[1609532805062,0.07140473,29249.0,29244.0,0.6305]
[1609532805259,0.363425,29248.0,29244.0,0.6305]
[1609532805463,0.463425,29248.0,29244.0,0.6305]
[1609532805657,0.03565489,29247.0,29244.0,0.6305]
[1609532805878,0.7115771,29246.0,29244.0,0.6305]
[1609532806078,0.8115771,29246.0,29242.0,0.0002]
[1609532806283,0.363425,29245.0,29242.0,0.0002]
[1609532806587,1.263425,29243.0,29241.0,0.0004]
[1609532806794,0.3481521,29242.0,29238.0,0.0006]
[1609532806978,0.363425,29241.0,29238.0,0.0006]
[1609532807180,0.7115771,29241.0,29238.0,0.0006]
[1609532807375,0.8115771,29241.0,29238.0,0.0006]
[1609532807792,0.51250001,29244.0,29240.0,4.690689]
[1609532807987,0.51250001,29244.0,29241.0,1.77458391]
[1609532808187,0.51250001,29244.0,29243.0,4.510668]
[1609532808582,0.51250001,29244.0,29243.0,0.160668]
[1609532808782,0.51250001,29244.0,29243.0,0.155668]
[1609532809280,0.51250001,29244.0,29243.0,0.150668]
[1609532810229,0.58381068,29244.0,29243.0,0.150668]
[1609532810429,0.93196278,29244.0,29243.0,0.150668]
[1609532810631,0.68381068,29244.0,29243.0,0.150668]
[1609532811132,0.61946573,29244.0,29243.0,1.12525191]
[1609532811469,0.61946573,29244.0,29243.0,3.5874388]
[1609532811765,0.61946573,29244.0,29243.0,4.64202271]
[1609532812276,0.03565505,29244.0,29243.0,9.09202271]
[1609532812679,0.5123,29247.0,29246.0,0.122647]
[1609532812881,0.07130039,29251.0,29250.0,7.022622]
[1609532813169,0.07130039,29251.0,29250.0,8.48771591]
[1609532813576,0.0356469,29252.0,29250.0,8.28271591]
[1609532813877,0.5123,29252.0,29251.0,7.82458391]
[1609532814075,0.00283531,29255.0,29254.0,4.3]
[1609532814269,0.00283531,29255.0,29254.0,0.217595]
[1609532814472,0.03564473,29257.0,29254.0,0.417595]
[1609532814670,0.03564473,29257.0,29255.0,0.197589]
[1609532815073,0.03564473,29257.0,29256.0,0.117583]
[1609532815299,0.03564473,29257.0,29256.0,0.313993]
[1609532816603,0.03564473,29257.0,29256.0,0.303993]
[1609532817211,1.263419,29257.0,29256.0,0.19641]
[1609532817408,1.363419,29257.0,29251.0,0.6628]
[1609532817611,1.6836,29257.0,29247.0,0.525]
[1609532817912,0.363419,29256.0,29246.0,0.7296]
[1609532818113,0.5123,29252.0,29246.0,0.5296]
[1609532818715,0.6123,29252.0,29246.0,0.5296]
[1609532818913,0.5123,29252.0,29247.0,0.532734]
[1609532819110,0.5123,29252.0,29249.0,0.107624]
[1609532819418,0.5123,29252.0,29251.0,1.202614]
[1609532819604,0.5123,29252.0,29251.0,1.302614]
[1609532820919,0.5123,29252.0,29251.0,0.202614]
[1609532821520,0.5123,29252.0,29251.0,0.102614]
[1609532822328,1.04702623,29252.0,29246.0,0.5296]
[1609532822532,1.04702623,29252.0,29247.0,0.102627]
[1609532822533,0.68360023,29252.0,29247.0,0.102627]
[1609532822924,0.71925099,29252.0,29247.0,0.102627]
[1609532823726,0.71925099,29252.0,29245.0,0.691]
[1609532824422,0.363426,29251.0,29245.0,0.691]
[1609532824683,0.463426,29251.0,29245.0,0.8337408]
[1609532824872,0.6832,29248.0,29245.0,0.8337408]
[1609532825069,0.7832,29248.0,29245.0,0.8337408]
[1609532825669,0.7832,29248.0,29246.0,0.102641]
[1609532825870,0.7832,29248.0,29245.0,0.691]
[1609532826175,0.6832,29248.0,29245.0,0.691]
[1609532826369,0.1,29247.0,29245.0,0.691]
[1609532826603,0.51240001,29246.0,29245.0,0.691]
[1609532826806,0.51240001,29246.0,29243.0,0.092652]
[1609532827003,0.61240001,29246.0,29243.0,0.092652]
[1609532827601,0.61240001,29246.0,29241.0,0.7741408]
[1609532827812,0.07130498,29245.0,29242.0,0.2353988]
[1609532828306,0.03565242,29244.0,29242.0,0.2353988]
[1609532832142,0.03565242,29244.0,29242.0,0.092658]
[1609532833741,0.03565242,29244.0,29241.0,0.6314]
[1609532834148,0.363431,29243.0,29241.0,0.6314]
[1609532834353,0.463431,29243.0,29241.0,0.6314]
[1609532834552,0.6833,29242.0,29241.0,0.6314]
[1609532834747,1.146731,29242.0,29241.0,0.6314]
[1609532834945,1.146731,29242.0,29241.0,0.6262745]
[1609532835540,1.21803997,29242.0,29241.0,0.6262745]
[1609532835744,1.21803997,29242.0,29241.0,0.64135149]
[1609532835980,1.146731,29242.0,29241.0,0.64135149]
[1609532836178,1.146731,29242.0,29241.0,0.53441149]
[1609532836583,0.7833,29242.0,29241.0,0.53441149]
[1609532837083,0.7833,29242.0,29241.0,0.62707849]
[1609532837281,0.6833,29242.0,29241.0,0.62707849]
[1609532837481,1.0314521,29242.0,29241.0,0.62707849]
[1609532837680,0.6833,29242.0,29241.0,0.62707849]
[1609532837882,1.0314521,29242.0,29241.0,0.53441149]
[1609532838084,0.6833,29242.0,29241.0,0.53441149]
[1609532838382,1.046731,29242.0,29241.0,0.53441149]
[1609532838985,1.3948831,29242.0,29232.0,0.0004]
[1609532839203,0.51250001,29238.0,29234.0,0.092692]
[1609532839392,0.6834,29239.0,29234.0,0.092692]
[1609532839653,0.6834,29239.0,29234.0,0.082692]
[1609532840354,0.71686812,29239.0,29234.0,0.082692]
[1609532840550,0.03346812,29238.0,29234.0,0.082692]
[1609532840746,0.6834,29239.0,29234.0,0.082692]
[1609532840948,0.71686812,29239.0,29234.0,0.082692]
[1609532841151,0.50750001,29237.0,29234.0,0.082692]
[1609532841350,0.50750001,29237.0,29236.0,0.082694]
[1609532844149,0.57881868,29237.0,29236.0,0.082694]
[1609532844557,0.50750001,29237.0,29236.0,0.082694]
[1609532845965,0.54096813,29237.0,29235.0,0.01088358]
[1609532846271,0.50750001,29237.0,29236.0,0.081493]
[1609532846664,0.50750001,29237.0,29236.0,0.076493]
[1609532847170,0.50750001,29237.0,29235.0,0.01088358]
[1609532847373,0.363441,29236.0,29235.0,0.01088358]
[1609532847572,0.39690912,29236.0,29235.0,0.01088358]
[1609532847770,0.363441,29236.0,29235.0,0.01088358]
[1609532848275,0.50750001,29237.0,29235.0,0.01088358]
[1609532848473,0.50750001,29237.0,29236.0,7.126495]
[1609532848777,0.03565696,29241.0,29236.0,9.10107891]
[1609532848981,0.43,29249.0,29238.0,0.43336044]
[1609532849181,0.43,29249.0,29244.0,0.076457]
[1609532849481,0.85410001,29251.0,29245.0,7.80369391]
[1609532849675,0.85410001,29251.0,29245.0,8.80369391]
[1609532850071,0.5123,29252.0,29245.0,8.80369391]
[1609532850271,0.2742,29255.0,29245.0,8.80369391]
[1609532851487,0.6836,29257.0,29245.0,8.80369391]
[1609532852092,0.5122,29256.0,29245.0,8.80369391]
[1609532852888,0.5122,29256.0,29245.0,2.25369391]